fUSD/lending_fUSD_20260203
["ID","MTS","AMOUNT","RATE_DAILY","PERIOD"]
[404395969,1770101219991,-5000.01,8.59e-05,2]
[404395970,1770101220097,-5000.01,8.59e-05,2]
[404395971,1770101220242,-5000.01,8.59e-05,2]
[404395972,1770101220378,-5000.01,8.59e-05,2]
[404395973,1770101220500,-5000.01,8.59e-05,2]
[404395974,1770101225893,-5000.01,8.59e-05,2]
[404395975,1770101226001,-5000.01,8.59e-05,2]
[404395976,1770101226099,-5000.01,8.59e-05,2]
[404395977,1770101226588,200.0,8.6e-05,3]
[404395978,1770101226710,-10000.01,8.59e-05,2]
[404395979,1770101228686,400.0,8.7e-05,3]
[404395980,1770101230779,600.0,8.8e-05,3]
[404395981,1770101231964,-5000.01,8.59e-05,2]
[404395982,1770101232101,-5000.01,8.59e-05,2]
[404395983,1770101232245,-5000.01,8.59e-05,2]
[404395984,1770101232962,800.0,8.9e-05,3]
[404395985,1770101235151,1000.0,9e-05,3]
[404395986,1770101237987,-1000.0,8.589e-05,2]
[404395987,1770101238036,-3000.01,8.59e-05,2]
[404395988,1770101238094,-5000.01,8.59e-05,2]
[404395989,1770101238221,-5000.01,8.59e-05,2]
[404395990,1770101242647,-10000.01,8.59e-05,2]
[404395991,1770101242845,-10000.01,8.59e-05,2]
[404395992,1770101242967,-10000.01,8.59e-05,2]
[404395993,1770101243107,-10000.01,8.59e-05,2]
[404395994,1770101243530,-10000.01,8.59e-05,2]
[404395995,1770101243656,-10000.01,8.59e-05,2]
[404395996,1770101243955,-10000.01,8.59e-05,2]
[404395997,1770101244011,-5000.01,8.59e-05,2]
[404395998,1770101244249,-5000.01,8.59e-05,2]
[404395999,1770101244385,-5000.01,8.59e-05,2]
[404396000,1770101245183,-10000.01,8.59e-05,2]
[404396001,1770101401521,261.0,8.517e-05,2]
[404396002,1770101401559,1200.0,8.517e-05,2]
[404396003,1770101406656,500.0,8.325e-05,2]
[404396004,1770101432266,-756.18617286,8.518e-05,2]
[404396005,1770101432319,-3571.53153388,8.518e-05,2]
[404396006,1770101432393,-274.52644192,8.518e-05,2]
[404396007,1770101432403,-12145.39512294,8.518e-05,2]
[404396008,1770101432412,-21425.91663654,8.518e-05,2]
[404396009,1770101432422,-300.0,8.518e-05,2]
[404396010,1770101432432,-221.0,8.518e-05,2]
[404396011,1770101432441,-151.0,8.587e-05,2]
[404396012,1770101432450,-150.0,8.589e-05,2]
[404396013,1770101432460,-300.0,8.589e-05,2]
[404396014,1770101432469,-225.91341385,8.589e-05,2]
[404396015,1770101432478,-500.0,8.589e-05,2]
[404396016,1770101432487,-500.0,8.589e-05,2]
[404396017,1770101432496,-399.87146442,8.589e-05,2]
[404396018,1770101432505,-186.0735036,8.589e-05,2]
[404396019,1770101432514,-500.0,8.589e-05,2]
[404396020,1770101432523,-500.0,8.589e-05,2]
[404396021,1770101432532,-500.0,8.589e-05,2]
[404396022,1770101432542,-500.0,8.589e-05,2]
[404396023,1770101432551,-500.0,8.589e-05,2]
[404396024,1770101432560,-276.09018762,8.589e-05,2]
[404396025,1770101432569,-500.0,8.589e-05,2]
[404396026,1770101432577,-500.0,8.589e-05,2]
[404396027,1770101432587,-500.0,8.589e-05,2]
[404396028,1770101432596,-500.0,8.589e-05,2]
[404396029,1770101432606,-500.0,8.589e-05,2]
[404396030,1770101432615,-553.46823167,8.589e-05,2]
[404396031,1770101432624,-500.0,8.589e-05,2]
[404396032,1770101432633,-1184.03311277,8.59e-05,2]
[404396033,1770101432642,-39144.3921243,8.59e-05,2]
[404396035,1770101432653,-27866.39933629,8.59e-05,2]
[404396036,1770101432664,-1351.14592439,8.59e-05,2]
[404396037,1770101432675,-1283.74605043,8.59e-05,2]
[404396038,1770101432685,-8886.18718251,8.59e-05,2]
[404396047,1770101439081,-3729.44527212,8.59e-05,2]
[404396048,1770101439144,-540.01220046,8.59e-05,2]
[404396049,1770101439156,-15378.4145365,8.59e-05,2]
[404396050,1770101439209,-3174963.287373,8.59e-05,2]
[404396051,1770101439219,-2500.0,8.6e-05,2]
[404396052,1770101439229,-6171.64795158,8.6e-05,2]
[404396053,1770101439239,-304.99980403,8.6e-05,2]
[404396054,1770101439249,-199164.4018685,8.615e-05,2]
[404396055,1770101439259,-250.0,8.64e-05,2]
[404396056,1770101439269,-5047.1451238,8.689e-05,2]
[404396058,1770101439279,-69195.49000613,8.69e-05,2]
[404396060,1770101439288,-32051.88988836,8.768e-05,2]
[404396062,1770101439298,-3678.346,8.799e-05,2]
[404396064,1770101439307,-303.008,8.799e-05,2]
[404396066,1770101439317,-2617.0576,8.8e-05,2]
[404396068,1770101439327,-7798.7438,8.8e-05,2]
[404396070,1770101439336,-10000.0,8.8e-05,2]
[404396072,1770101439346,-150.99,8.8e-05,2]
[404396074,1770101439355,-150.99,8.8e-05,2]
[404396076,1770101439365,-299.99,8.8e-05,2]
[404396078,1770101439378,-3480.04,8.8e-05,2]
[404396080,1770101439387,-2943.13,8.949e-05,2]
[404396082,1770101439396,-999.99,8.949e-05,2]
[404396084,1770101439406,-10549.8,8.985e-05,2]
[404396086,1770101439415,-9999.99,9.047e-05,2]
[404396088,1770101439424,-151.0,9.047e-05,2]
[404396090,1770101439434,-33292.3487,9.05e-05,2]
[404396092,1770101439443,-1000000.0,9.05e-05,2]
[404396095,1770101439453,-500.0,9.133e-05,2]
[404396096,1770101439462,-500.0,9.133e-05,2]
[404396099,1770101439471,-500.0,9.133e-05,2]
[404396100,1770101439481,-173.07272258,9.133e-05,2]
[404396103,1770101439491,-500.0,9.133e-05,2]
[404396105,1770101439500,-500.0,9.133e-05,2]
[404396107,1770101439509,-500.0,9.133e-05,2]
[404396109,1770101439519,-500.0,9.133e-05,2]
[404396111,1770101439529,-500.0,9.133e-05,2]
[404396113,1770101439540,-500.0,9.133e-05,2]
[404396115,1770101439561,-500.0,9.133e-05,2]
[404396117,1770101439580,-500.0,9.133e-05,2]
[404396119,1770101439594,-500.0,9.133e-05,2]
[404396122,1770101439604,-500.0,9.133e-05,2]
[404396124,1770101439614,-500.0,9.133e-05,2]
[404396126,1770101439623,-500.0,9.133e-05,2]
[404396128,1770101439633,-500.0,9.133e-05,2]
[404396130,1770101439643,-500.0,9.133e-05,2]
[404396132,1770101439653,-1223.56,9.133e-05,2]
[404396134,1770101439663,-214.82760264,9.137e-05,2]
[404396136,1770101439673,-1680.0,9.368e-05,2]
[404396138,1770101439682,-300.0,9.369e-05,2]
[404396140,1770101439692,-1223.56,9.407e-05,2]
[404396142,1770101439701,-250.0,9.448e-05,2]
[404396144,1770101439711,-255.0,9.448e-05,2]
[404396146,1770101439720,-420.0,9.448e-05,2]
[404396148,1770101439730,-250.0,9.449e-05,2]
[404396150,1770101439740,-1710.26,9.673e-05,2]
[404396152,1770101439749,-1223.56,9.681e-05,2]
[404396154,1770101439760,-1221.43566997,9.766e-05,2]
[404396156,1770101439771,-199164.4018685,9.878e-05,2]
[404396158,1770101439781,-1223.56,9.955e-05,2]
[404396160,1770101439794,-151.0,0.0001,2]
[404396162,1770101439806,-151.0,0.0001,2]
[404396164,1770101439816,-151.0,0.0001,2]
[404396166,1770101439825,-151.0,0.0001,2]
[404396169,1770101439837,-151.0,0.0001,2]
[404396171,1770101439847,-151.0,0.0001,2]
[404396173,1770101439857,-151.0,0.0001,2]
[404396175,1770101439868,-151.0,0.0001,2]
[404396177,1770101439878,-151.0,0.0001,2]
[404396179,1770101439888,-151.0,0.0001,2]
[404396181,1770101439898,-151.0,0.0001,2]
[404396183,1770101439908,-151.0,0.0001,2]
[404396185,1770101439919,-150.01364678,0.0001,2]
[404396187,1770101439928,-151.0,0.0001,2]
[404396190,1770101439943,-151.0,0.0001,2]
[404396192,1770101439952,-151.0,0.0001,2]
[404396194,1770101439963,-151.0,0.0001,2]
[404396196,1770101439972,-151.0,0.0001,2]
[404396198,1770101439982,-151.0,0.0001,2]
[404396199,1770101439992,-151.0,0.0001,2]
[404396202,1770101440004,-151.0,0.0001,2]
[404396204,1770101440014,-169.96770097,0.0001,2]
[404396206,1770101440024,-43367.346,0.00010218,2]
[404396208,1770101440034,-1223.56,0.00010228,2]
[404396210,1770101440044,-2351.0,0.00010305,2]
[404396212,1770101440053,-1916.97,0.00010383,2]
[404396214,1770101440062,-433.0,0.00010393,2]
[404396216,1770101440072,-232.0,0.00010393,2]
[404396218,1770101440081,-1223.56,0.00010502,2]
[404396220,1770101440091,-1223.56,0.00010776,2]
[404396222,1770101440100,-4536.43373655,0.000109,2]
[404396224,1770101440109,-500.0,0.00010958,2]
[404396226,1770101440119,-500.0,0.00010958,3]
[404396228,1770101440128,-500.0,0.00010958,4]
[404396230,1770101440138,-1223.56,0.0001105,2]
[404396232,1770101440148,-1556.47197907,0.00011099,2]
[404396234,1770101440157,-1556.47197901,0.00011099,2]
[404396236,1770101440167,-1556.47197901,0.00011099,2]
[404396237,1770101440176,-1556.47197901,0.00011099,2]
[404396238,1770101440186,-1556.47197901,0.00011099,2]
[404396239,1770101440198,-1556.47197901,0.00011099,2]
[404396240,1770101440208,-199164.4018685,0.00011141,2]
[404396241,1770101440218,-150.01364678,0.00011164,2]
[404396242,1770101440227,-4536.43373655,0.00011214,2]
[404396243,1770101440237,-1223.56,0.00011324,2]
[404396244,1770101440248,-3292.0,0.00011336,2]
[404396245,1770101440258,-250.0,0.00011346,2]
[404396246,1770101440267,-1556.47197901,0.00011399,2]
[404396247,1770101440278,-525.0,0.00011432,2]
[404396249,1770101440288,-1223.56,0.00011598,2]
[404396251,1770101440298,-159.0,0.00011643,2]
[404396252,1770101440307,-151.0,0.00011643,2]
[404396253,1770101440318,-177.18689156,0.00011643,2]
[404396254,1770101440327,-300.0,0.00011643,2]
[404396255,1770101440336,-500.0,0.00011753,2]
[404396256,1770101440346,-464.55,0.00011828,2]
[404396257,1770101440356,-1556.47197901,0.00011866,2]
[404396258,1770101440366,-1223.56,0.00011872,2]
[404396259,1770101440375,-1223.56,0.00012146,2]
[404396260,1770101440385,-150.0,0.00012159,2]
[404396261,1770101440395,-150.01364678,0.00012328,2]
[404396262,1770101440405,-1556.47197901,0.00012332,2]
[404396263,1770101440415,-199164.4018685,0.00012404,2]
[404396264,1770101440425,-1223.56,0.0001242,2]
[404396265,1770101440435,-4609.0,0.00012469,2]
[404396266,1770101440445,-4536.43373655,0.00012551,2]
[404396267,1770101440455,-1223.56,0.00012694,2]
[404396268,1770101440465,-1556.47197901,0.00012799,2]
[404396269,1770101440475,-1223.56,0.00012968,2]
[404396270,1770101440484,-6171.64795157,0.000132,2]
[404396271,1770101440494,-1223.56,0.00013242,2]
[404396272,1770101440504,-3240.0,0.00013425,2]
[404396273,1770101440513,-1223.56,0.00013516,2]
[404396274,1770101440523,-500.0,0.00013644,2]
[404396275,1770101440532,-452.02134495,0.00013698,2]
[404396276,1770101440541,-500.0,0.00013698,2]
[404396277,1770101440551,-500.0,0.00013698,2]
[404396278,1770101440560,-500.0,0.00013698,2]
[404396279,1770101440570,-438.97921379,0.00013698,2]
[404396280,1770101440580,-199.38200897,0.00013698,2]
[404396281,1770101440599,-500.0,0.00013698,2]
[404396282,1770101440609,-500.0,0.00013698,2]
[404396283,1770101440619,-500.0,0.00013698,2]
[404396284,1770101440629,-500.0,0.00013698,2]
[404396285,1770101440639,-378.56522147,0.00013698,2]
[404396286,1770101440649,-500.0,0.00013698,2]
[404396287,1770101440659,-500.0,0.00013698,2]
[404396288,1770101440668,-500.0,0.00013698,2]
[404396289,1770101440678,-500.0,0.00013698,2]
[404396290,1770101440688,-500.0,0.00013698,2]
[404396291,1770101440699,-500.0,0.00013698,2]
[404396292,1770101440712,-340.45778603,0.00013698,2]
[404396293,1770101440722,-500.0,0.00013698,2]
[404396294,1770101440732,-500.0,0.00013698,2]
[404396295,1770101440743,-500.0,0.00013698,2]
[404396296,1770101440753,-500.0,0.00013698,2]
[404396297,1770101440765,-545.58231824,0.00013698,2]
[404396298,1770101440776,-552.61203619,0.00013698,2]
[404396299,1770101440786,-500.0,0.00013698,2]
[404396300,1770101440796,-500.0,0.00013698,2]
[404396301,1770101440806,-500.0,0.00013698,2]
[404396302,1770101440816,-500.0,0.00013698,2]
[404396303,1770101440826,-500.0,0.00013698,2]
[404396304,1770101440837,-360.56349982,0.00013698,2]
[404396305,1770101440847,-500.0,0.00013698,2]
[404396306,1770101440856,-500.0,0.00013698,2]
[404396307,1770101440866,-500.0,0.00013698,2]
[404396308,1770101440876,-500.0,0.00013698,2]
[404396309,1770101440885,-500.0,0.00013698,2]
[404396310,1770101440895,-500.0,0.00013698,2]
[404396311,1770101440904,-500.0,0.00013698,2]
[404396312,1770101440914,-500.0,0.00013698,2]
[404396313,1770101440923,-371.76186134,0.00013698,2]
[404396314,1770101440933,-500.0,0.00013698,2]
[404396316,1770101440942,-509.06540724,0.00013698,2]
[404396317,1770101440952,-4600.75,0.00013699,2]
[404396318,1770101440962,-500.0,0.000137,2]
[404396319,1770101440973,-500.0,0.000137,2]
[404396320,1770101440984,-500.0,0.000137,2]
[404396321,1770101440995,-500.0,0.000137,2]
[404396322,1770101441004,-5474.0,0.00013716,2]
[404396323,1770101441014,-1223.56,0.0001379,2]
[404396324,1770101441024,-4536.43373655,0.00013888,2]
[404396325,1770101441035,-1223.56,0.00014064,2]
[404396326,1770101441046,-1000.0,0.00014248,2]
[404396327,1770101441056,-1000.0,0.00014248,2]
[404396328,1770101441066,-1001.21553048,0.00014248,2]
[404396329,1770101441076,-10073.42392723,0.0001429,7]
[404396330,1770101441087,-1223.56,0.00014338,2]
[404396331,1770101441097,-4600.75,0.00014384,2]
[404396332,1770101441108,-1223.56,0.00014612,2]
[404396333,1770101441118,-150.01364678,0.00014657,2]
[404396334,1770101441133,-369.98194845,0.00014796,2]
[404396335,1770101441142,-495.7739334,0.00014796,2]
[404396336,1770101441153,-1223.56,0.00014886,2]
[404396337,1770101441164,-250.0,0.00015,2]
[404396338,1770101441175,-4600.75,0.00015068,2]
[404396339,1770101441184,-900.0,0.00015068,2]
[404396340,1770101441194,-1223.56,0.0001516,2]
[404396341,1770101441204,-4536.43373655,0.00015225,2]
[404396342,1770101441214,-1223.56,0.00015434,2]
[404396343,1770101441224,-160.0,0.00015573,2]
[404396344,1770101441234,-1223.56,0.00015708,2]
[404396345,1770101441245,-4600.75,0.00015753,2]
[404396346,1770101441255,-500.0,0.00015781,2]
[404396347,1770101441265,-1000.0,0.000159,7]
[404396348,1770101441274,-1223.74,0.00015982,2]
[404396349,1770101441284,-256.701042,0.00016,2]
[404396350,1770101441293,-200.0,0.00016029,2]
[404396351,1770101441303,-9999.99,0.00016116,2]
[404396352,1770101441312,-500.0,0.00016292,2]
[404396353,1770101441323,-464.55,0.00016345,2]
[404396354,1770101441333,-12882.18,0.00016402,2]
[404396355,1770101441344,-1911.41410949,0.00016438,2]
[404396356,1770101441354,-500.0,0.00016438,2]
[404396357,1770101441364,-330.22332732,0.00016438,2]
[404396358,1770101441373,-500.0,0.00016438,2]
[404396359,1770101441383,-500.0,0.00016438,2]
[404396360,1770101441393,-500.0,0.00016438,2]
[404396361,1770101441402,-500.0,0.00016438,2]
[404396362,1770101441412,-500.0,0.00016438,2]
[404396363,1770101441421,-500.0,0.00016438,2]
[404396364,1770101441431,-500.0,0.00016438,2]
[404396365,1770101441442,-500.0,0.00016438,2]
[404396366,1770101441452,-190.01361096,0.00016438,2]
[404396367,1770101441463,-500.0,0.00016438,2]
[404396368,1770101441472,-500.0,0.00016438,2]
[404396369,1770101441482,-500.0,0.00016438,2]
[404396370,1770101441491,-500.0,0.00016438,2]
[404396371,1770101441500,-500.0,0.00016438,2]
[404396372,1770101441514,-500.0,0.00016438,2]
[404396373,1770101441524,-500.0,0.00016438,2]
[404396374,1770101441534,-500.0,0.00016438,2]
[404396375,1770101441544,-500.0,0.00016438,2]
[404396376,1770101441554,-500.0,0.00016438,2]
[404396377,1770101441564,-500.0,0.00016438,2]
[404396378,1770101441573,-500.0,0.00016438,2]
[404396379,1770101441583,-500.0,0.00016438,2]
[404396380,1770101441592,-500.0,0.00016438,2]
[404396381,1770101441602,-500.0,0.00016438,2]
[404396382,1770101441612,-2798.41268696,0.00016438,2]
[404396383,1770101441621,-2798.41268696,0.00016438,2]
[404396384,1770101441631,-2798.41268696,0.00016438,2]
[404396385,1770101441641,-2798.41268696,0.00016438,2]
[404396386,1770101441650,-2798.41268696,0.00016438,2]
[404396387,1770101441660,-2798.41268696,0.00016438,2]
[404396388,1770101441669,-2798.41268696,0.00016438,2]
[404396389,1770101441678,-2798.41268696,0.00016438,2]
[404396390,1770101441688,-2798.41268696,0.00016438,2]
[404396391,1770101441698,-2798.41268696,0.00016438,2]
[404396392,1770101441708,-2798.41268696,0.00016438,2]
[404396393,1770101441717,-2798.41268696,0.00016438,2]
[404396394,1770101441727,-2798.41268696,0.00016438,2]
[404396395,1770101441736,-2798.41268696,0.00016438,2]
[404396396,1770101441746,-2798.41268696,0.00016438,2]
[404396397,1770101441755,-2798.41268696,0.00016438,2]
[404396398,1770101441768,-2798.41268696,0.00016438,2]
[404396399,1770101441778,-2798.41268696,0.00016438,2]
[404396400,1770101441787,-2798.41268696,0.00016438,2]
[404396401,1770101441796,-2798.41268696,0.00016438,2]
[404396402,1770101441807,-2798.41268696,0.00016438,2]
[404396403,1770101441816,-2798.41268696,0.00016438,2]
[404396404,1770101441826,-2798.41268696,0.00016438,2]
[404396405,1770101441836,-2798.41268696,0.00016438,2]
[404396406,1770101441845,-2798.41268696,0.00016438,2]
[404396407,1770101441855,-2798.41268696,0.00016438,2]
[404396408,1770101441866,-2798.41268696,0.00016438,2]
[404396409,1770101441880,-2798.41268696,0.00016438,2]
[404396410,1770101441889,-2798.41268696,0.00016438,2]
[404396411,1770101441900,-2798.41268696,0.00016438,2]
[404396412,1770101441911,-2798.41268696,0.00016438,2]
[404396413,1770101441920,-2798.41268696,0.00016438,2]
[404396414,1770101441931,-2798.41268696,0.00016438,2]
[404396415,1770101441941,-2798.41268696,0.00016438,2]
[404396416,1770101441953,-2798.41268696,0.00016438,2]
[404396417,1770101441963,-2798.41268696,0.00016438,2]
[404396418,1770101441972,-2798.41268696,0.00016438,2]
[404396419,1770101441983,-2798.41268696,0.00016438,2]
[404396420,1770101441994,-2798.41268696,0.00016438,2]
[404396421,1770101442004,-2798.41268696,0.00016438,2]
[404396422,1770101442014,-2798.41268696,0.00016438,2]
[404396423,1770101442025,-2798.41268696,0.00016438,2]
[404396424,1770101442035,-2727.68357509,0.00016438,2]
[404396425,1770101442047,-2727.68357509,0.00016438,2]
[404396426,1770101442056,-2727.68357509,0.00016438,2]
[404396427,1770101442066,-2727.68357509,0.00016438,2]
[404396428,1770101442079,-2727.68357509,0.00016438,2]
[404396429,1770101442088,-2727.68357509,0.00016438,2]
[404396430,1770101442098,-2727.68357509,0.00016438,2]
[404396431,1770101442107,-2727.68357509,0.00016438,2]
[404396432,1770101442117,-2727.68357509,0.00016438,2]
[404396433,1770101442127,-2727.68357509,0.00016438,2]
[404396434,1770101442136,-2727.68357509,0.00016438,2]
[404396435,1770101442146,-2727.68357509,0.00016438,2]
[404396436,1770101442155,-2727.68357509,0.00016438,2]
[404396437,1770101442165,-2727.68357509,0.00016438,2]
[404396438,1770101442176,-2727.68357509,0.00016438,2]
[404396439,1770101442185,-2727.68357509,0.00016438,2]
[404396440,1770101442196,-2727.68357509,0.00016438,2]
[404396441,1770101442206,-2727.68357509,0.00016438,2]
[404396442,1770101442216,-2727.68357509,0.00016438,2]
[404396443,1770101442226,-2727.68357509,0.00016438,2]
[404396444,1770101442236,-2727.68357509,0.00016438,2]
[404396445,1770101442246,-2727.68357509,0.00016438,2]
[404396446,1770101442257,-2727.68357509,0.00016438,2]
[404396447,1770101442270,-2727.68357512,0.00016438,2]
[404396448,1770101442280,-2727.68357512,0.00016438,2]
[404396449,1770101442290,-2727.68357511,0.00016438,2]
[404396450,1770101442301,-4600.75,0.00016438,2]
[404396451,1770101442310,-900.0,0.00016438,2]
[404396452,1770101442320,-200.0,0.00016438,2]
[404396453,1770101442330,-2008.0,0.000165,2]
[404396454,1770101442340,-200.05997466,0.00016546,2]
[404396455,1770101442350,-471.47764088,0.00016551,2]
[404396456,1770101442359,-4536.43373655,0.00016563,2]
[404396457,1770101442368,-165.76,0.00016712,2]
[404396458,1770101442378,-775.48,0.00016833,2]
[404396459,1770101442388,-200.0,0.000169,6]
[404396460,1770101442398,-500.0,0.00016964,2]
[404396461,1770101442407,-300.0,0.00017,2]
[404396462,1770101442418,-160.0,0.00017,7]
[404396463,1770101442428,-2914.65,0.00017067,2]
[404396464,1770101442438,-1000.0,0.0001726,2]
[404396465,1770101442448,-500.0,0.00017288,2]
[404396466,1770101442460,-25837.1765527,0.00017478,2]
[404396467,1770101442470,-200.0,0.00017492,2]
[404396468,1770101442480,-500.0,0.00017507,2]
[404396469,1770101442489,-1000.0,0.00017534,2]
[404396470,1770101442499,-200.0,0.000176,6]
[404396471,1770101442508,-200.0,0.00017601,2]
[404396472,1770101442517,-464.55,0.00017622,2]
[404396473,1770101442527,-200.0,0.000177,6]
[404396474,1770101442537,-5888.0,0.00017706,2]
[404396475,1770101442546,-1000.0,0.00017731,2]
[404396476,1770101442556,-150.0,0.00017736,2]
[404396477,1770101442565,-150.0,0.00017743,2]
[404396478,1770101442575,-1000.0,0.00017759,2]
[404396479,1770101442584,-1000.0,0.00017765,2]
[404396480,1770101442594,-1000.0,0.00017769,2]
[404396481,1770101442604,-1000.0,0.00017791,2]
[404396482,1770101442613,-150.0,0.00017793,2]
[404396483,1770101442622,-157.95285948,0.00017797,2]
[404396484,1770101442632,-200.0,0.000178,6]
[404396485,1770101442642,-1000.0,0.00017805,2]
[404396486,1770101442652,-1000.0,0.00017808,2]
[404396487,1770101442661,-150.0,0.00017809,2]
[404396488,1770101442671,-1000.0,0.0001781,2]
[404396489,1770101442680,-1000.0,0.00017811,2]
[404396490,1770101442689,-1000.0,0.00017812,2]
[404396491,1770101442699,-150.0,0.0001782,2]
[404396492,1770101442709,-2000.0,0.0001782,2]
[404396493,1770101442718,-2000.0,0.0001782,2]
[404396494,1770101442728,-1000.0,0.00017825,2]
[404396495,1770101442737,-1000.0,0.00017832,2]
[404396496,1770101442747,-1000.0,0.00017833,2]
[404396497,1770101442756,-1000.0,0.0001784,2]
[404396498,1770101442769,-5888.0,0.00017841,2]
[404396499,1770101442780,-1000.0,0.00017845,2]
[404396500,1770101442789,-1000.0,0.0001785,2]
[404396501,1770101442798,-150.0,0.00017852,2]
[404396502,1770101442809,-200.0,0.00017855,2]
[404396503,1770101442819,-200.0,0.00017856,2]
[404396504,1770101442828,-1000.0,0.00017857,2]
[404396505,1770101442839,-150.0,0.00017861,2]
[404396506,1770101442855,-1000.0,0.00017863,2]
[404396507,1770101442867,-150.0,0.00017864,2]
[404396508,1770101442877,-25000.0,0.00017874,3]
[404396509,1770101442886,-150.0,0.00017875,2]
[404396510,1770101442896,-1000.0,0.00017878,2]
[404396511,1770101442906,-1000.0,0.00017879,2]
[404396512,1770101442916,-150.0,0.00017881,2]
[404396513,1770101442930,-1000.0,0.00017882,2]
[404396514,1770101442947,-25000.0,0.00017882,3]
[404396515,1770101442958,-1000.0,0.00017884,2]
[404396516,1770101442968,-25000.0,0.00017891,3]
[404396517,1770101442978,-300.0,0.00017898,2]
[404396518,1770101442988,-23106.24832845,0.000179,3]
[404396519,1770101442997,-160.0,0.000179,3]
[404396520,1770101443007,-500.0,0.000179,2]
[404396521,1770101443017,-25000.0,0.000179,3]
[404396522,1770101443038,-25000.0,0.000179,3]
[404396524,1770101443055,-294.0,0.000179,6]
[404396526,1770101443064,-4536.43373655,0.000179,2]
[404396528,1770101443074,-6171.64795157,0.000179,2]
[404396529,1770101443083,-500.0,0.000179,2]
[404396530,1770101443093,-500.0,0.000179,2]
[404396531,1770101443102,-500.0,0.000179,2]
[404396532,1770101443112,-500.0,0.000179,2]
[404396533,1770101443121,-500.0,0.000179,2]
[404396534,1770101443132,-500.0,0.000179,2]
[404396535,1770101443142,-500.0,0.000179,2]
[404396536,1770101443152,-500.0,0.000179,2]
[404396537,1770101443162,-500.0,0.000179,2]
[404396538,1770101443172,-500.0,0.000179,2]
[404396539,1770101443182,-500.0,0.000179,2]
[404396540,1770101443192,-500.0,0.000179,2]
[404396541,1770101443203,-500.0,0.000179,2]
[404396542,1770101443213,-500.0,0.000179,2]
[404396543,1770101443223,-500.0,0.000179,2]
[404396544,1770101443233,-500.0,0.000179,2]
[404396545,1770101443528,-500.0,0.000179,2]
[404396546,1770101443540,-500.0,0.000179,2]
[404396547,1770101443550,-500.0,0.000179,2]
[404396548,1770101443565,-500.0,0.000179,2]
[404396549,1770101443574,-18387.0,0.000179,2]
[404396550,1770101443584,-200.0,0.00017908,2]
[404396551,1770101443594,-5888.0,0.00017914,2]
[404396552,1770101443603,-150.0,0.00017928,2]
[404396553,1770101443613,-1000.0,0.00017945,2]
[404396554,1770101443623,-200.0,0.00017948,2]
[404396555,1770101443633,-1000.0,0.0001795,7]
[404396556,1770101443643,-150.0,0.00017953,2]
[404396557,1770101443653,-1000.0,0.00017961,2]
[404396558,1770101443663,-1000.0,0.00017964,2]
[404396559,1770101443672,-983.42551089,0.00017968,2]
[404396560,1770101443682,-200.0,0.00017976,2]
[404396561,1770101443692,-1000.0,0.00017982,2]
[404396562,1770101443702,-500.87084133,0.00017982,2]
[404396563,1770101443715,-361.84102799,0.00017989,2]
[404396564,1770101443725,-1000.0,0.00017989,2]
[404396565,1770101443735,-341.83713414,0.00017989,2]
[404396566,1770101443745,-1000.0,0.00017993,2]
[404396567,1770101443755,-232.0,0.00017995,2]
[404396568,1770101443770,-22829.8729222,0.00017996,2]
[404396569,1770101443781,-567245.01513413,0.00017996,2]
[404396573,1770101444191,-1178.96741883,0.00017996,2]
[404396574,1770101444203,-1120.048768,0.00017996,2]
[404396575,1770101444243,-254.31677472,0.00017996,2]
[404396576,1770101444263,-27694.85751012,0.00017996,2]
[404396577,1770101444273,-1647.7538839,0.00017996,2]
[404396578,1770101444283,-1428.38747117,0.00017996,4]